fUST/lending_fUST_20250818
["ID","MTS","AMOUNT","RATE_DAILY","PERIOD"]
[380067492,1755527439152,-500.0,0.00019973,2]
[380067493,1755527439161,-500.0,0.00019973,2]
[380067494,1755527439171,-500.0,0.00019973,2]
[380067495,1755527439180,-500.0,0.00019973,2]
[380067496,1755527439190,-500.0,0.00019973,2]
[380067497,1755527439199,-500.0,0.00019973,2]
[380067498,1755527439209,-500.0,0.00019973,2]
[380067499,1755527439219,-501.19436436,0.00019973,2]
[380067500,1755527439228,-500.0,0.00019973,2]
[380067501,1755527439240,-167.71821933,0.00019973,2]
[380067502,1755527439250,-500.0,0.00019973,2]
[380067503,1755527439259,-500.0,0.00019973,2]
[380067504,1755527439269,-151.0,0.00019988,2]
[380067505,1755527439279,-1164.32269807,0.0002,2]
[380067506,1755527439288,-480.0,0.0002,2]
[380067507,1755527439298,-36540.1971488,0.0002,20]
[380067508,1755527439309,-8535.73461815,0.0002,2]
[380067509,1755527439318,-19615.26985351,0.0002,2]
[380067510,1755527439328,-68337.1767654,0.0002,2]
[380067511,1755527439337,-28686.62269816,0.0002,2]
[380067512,1755527439347,-480.0,0.0002,2]
[380067513,1755527439358,-215.43371464,0.0002,2]
[380067514,1755527439367,-151.0,0.0002,2]
[380067515,1755527439377,-151.0,0.0002,2]
[380067516,1755527439386,-151.0,0.0002,2]
[380067517,1755527439396,-151.0,0.0002,2]
[380067518,1755527439405,-152.044904,0.0002,2]
[380067519,1755527439415,-151.0,0.0002,2]
[380067520,1755527439424,-480.0,0.0002,2]
[380067521,1755527439434,-4232.7012569,0.00020003,2]
[380067522,1755527439444,-2964.95767875,0.0002015,2]
[380067523,1755527439453,-500.0,0.00020234,2]
[380067524,1755527439463,-480.0,0.00020273,2]
[380067525,1755527439472,-480.0,0.00020273,2]
[380067526,1755527439482,-480.0,0.00020273,2]
[380067527,1755527439495,-2964.95767875,0.00020501,2]
[380067528,1755527439505,-505.99678611,0.00020508,2]
[380067529,1755527439515,-1000.0,0.00020521,2]
[380067530,1755527439524,-500.90868466,0.00020521,2]
[380067531,1755527439534,-1000.0,0.00020521,2]
[380067532,1755527439543,-1001.72093208,0.00020521,2]
[380067533,1755527439552,-971.39321636,0.00020521,2]
[380067534,1755527439562,-500.0,0.00020521,2]
[380067535,1755527439571,-1000.0,0.00020521,2]
[380067536,1755527439580,-1000.0,0.00020521,2]
[380067537,1755527439589,-501.42275955,0.00020521,2]
[380067538,1755527439598,-1000.0,0.00020521,2]
[380067539,1755527439608,-159.55032346,0.00020521,2]
[380067540,1755527439618,-500.0,0.00020521,2]
[380067541,1755527439627,-329.54928962,0.00020545,2]
[380067544,1755527439636,-480.0,0.00020547,2]
[380067547,1755527439646,-480.0,0.00020547,2]
[380067550,1755527439655,-480.0,0.00020547,2]
[380067552,1755527439666,-458.11,0.0002059,2]
[380067555,1755527439675,-169.57210808,0.00020592,2]
[380067557,1755527439685,-420.0,0.00020595,2]
[380067561,1755527439694,-420.0,0.00020595,2]
[380067564,1755527439704,-420.0,0.00020595,2]
[380067566,1755527439713,-1680.0,0.00020601,2]
[380067568,1755527439722,-1680.0,0.00020694,2]
[380067571,1755527439731,-151.0,0.00020731,2]
[380067574,1755527439742,-151.0,0.00020731,2]
[380067576,1755527439751,-157.149703,0.00020731,2]
[380067578,1755527439760,-151.0,0.00020731,2]
[380067580,1755527439769,-151.0,0.00020731,2]
[380067582,1755527439778,-349.63532197,0.00020821,2]
[380067584,1755527439787,-480.0,0.00020821,2]
[380067586,1755527439797,-480.0,0.00020821,2]
[380067588,1755527439807,-260.7880678,0.00020841,2]
[380067590,1755527439816,-260.7880678,0.00020841,2]
[380067592,1755527439826,-2964.95767875,0.00020851,2]
[380067593,1755527439835,-293.7439445,0.00020951,2]
[380067595,1755527439844,-299.0,0.00020968,2]
[380067597,1755527439854,-1942.28339133,0.00021,5]
[380067599,1755527439863,-1205.26409376,0.00021,2]
[380067601,1755527439872,-203.11555608,0.00021,2]
[380067603,1755527439881,-157.0,0.00021018,2]
[380067605,1755527439891,-480.0,0.00021018,2]
[380067607,1755527439900,-461.95972647,0.00021018,2]
[380067609,1755527439910,-480.0,0.00021018,2]
[380067611,1755527439919,-2818.04,0.00021018,2]
[380067613,1755527439928,-480.0,0.00021018,2]
[380067615,1755527439937,-480.0,0.00021018,2]
[380067617,1755527439947,-4085.88,0.00021018,2]
[380067619,1755527439957,-507.73,0.00021018,2]
[380067621,1755527439966,-641.5,0.00021018,2]
[380067623,1755527439976,-480.0,0.00021018,2]
[380067625,1755527439986,-480.0,0.00021018,2]
[380067627,1755527439995,-573.55,0.00021018,2]
[380067629,1755527440004,-501.87,0.00021018,2]
[380067631,1755527440014,-609.52,0.00021018,2]
[380067633,1755527440023,-480.0,0.00021018,2]
[380067635,1755527440032,-480.0,0.00021018,2]
[380067636,1755527440041,-480.0,0.00021018,2]
[380067639,1755527440057,-486.56828322,0.00021018,2]
[380067640,1755527440068,-480.0,0.00021018,2]
[380067643,1755527440079,-480.0,0.00021018,2]
[380067644,1755527440088,-480.0,0.00021018,2]
[380067646,1755527440098,-486.90207527,0.00021018,2]
[380067648,1755527440107,-483.46134409,0.00021018,2]
[380067650,1755527440117,-480.0,0.00021018,2]
[380067652,1755527440127,-566.89,0.00021018,2]
[380067654,1755527440138,-618.39,0.00021026,2]
[380067656,1755527440147,-480.0,0.00021026,2]
[380067658,1755527440157,-509.86,0.00021026,2]
[380067660,1755527440167,-480.0,0.00021026,2]
[380067662,1755527440176,-500.0,0.00021026,2]
[380067664,1755527440185,-303.45752187,0.00021026,2]
[380067666,1755527440195,-480.0,0.00021026,2]
[380067668,1755527440205,-480.0,0.00021026,2]
[380067670,1755527440214,-484.98684834,0.00021026,2]
[380067672,1755527440223,-489.61452569,0.00021026,2]
[380067674,1755527440233,-480.0,0.00021026,2]
[380067676,1755527440244,-484.71289024,0.00021026,2]
[380067678,1755527440254,-486.289577,0.00021026,2]
[380067680,1755527440264,-572.14,0.00021026,2]
[380067682,1755527440274,-480.0,0.00021026,2]
[380067684,1755527440283,-480.0,0.00021026,2]
[380067686,1755527440292,-480.0,0.00021026,2]
[380067688,1755527440302,-480.0,0.00021026,2]
[380067690,1755527440312,-480.0,0.00021026,2]
[380067692,1755527440321,-208.49099333,0.00021026,2]
[380067694,1755527440331,-1035.25,0.00021026,2]
[380067695,1755527440341,-480.0,0.00021026,2]
[380067698,1755527440351,-1716.32,0.00021026,2]
[380067700,1755527440361,-480.0,0.00021026,2]
[380067701,1755527440371,-480.0,0.00021026,2]
[380067703,1755527440380,-480.0,0.00021026,2]
[380067705,1755527440390,-480.0,0.00021026,2]
[380067706,1755527440400,-480.0,0.00021026,2]
[380067707,1755527440411,-480.0,0.00021026,2]
[380067709,1755527440420,-871.1,0.00021026,2]
[380067710,1755527440430,-480.0,0.00021026,2]
[380067712,1755527440439,-480.0,0.00021026,2]
[380067714,1755527440448,-882.62,0.00021026,2]
[380067715,1755527440458,-446.2167009,0.00021026,2]
[380067716,1755527440467,-480.0,0.00021026,2]
[380067717,1755527440478,-549.86,0.00021026,2]
[380067718,1755527440489,-480.0,0.00021026,2]
[380067720,1755527440499,-480.0,0.00021026,2]
[380067721,1755527440509,-480.0,0.00021026,2]
[380067722,1755527440518,-1645.56,0.00021026,2]
[380067723,1755527440527,-594.17,0.00021026,2]
[380067724,1755527440537,-480.0,0.00021026,2]
[380067725,1755527440547,-916.51,0.00021026,2]
[380067726,1755527440556,-480.0,0.00021026,2]
[380067727,1755527440565,-462.17875475,0.00021026,2]
[380067728,1755527440576,-546.9435083,0.00021026,2]
[380067729,1755527440586,-535.14,0.00021026,2]
[380067730,1755527440595,-480.0,0.00021026,2]
[380067731,1755527440605,-480.0,0.00021026,2]
[380067732,1755527440717,-483.53420393,0.00021026,2]
[380067733,1755527440727,-527.99620771,0.00021026,2]
[380067734,1755527440738,-480.0,0.00021026,2]
[380067735,1755527440747,-480.0,0.00021026,2]
[380067736,1755527440757,-480.0,0.00021026,2]
[380067737,1755527440766,-489.31857062,0.00021026,2]
[380067738,1755527440776,-480.0,0.00021026,2]
[380067739,1755527440785,-480.0,0.00021026,2]
[380067740,1755527440795,-480.0,0.00021026,2]
[380067741,1755527440804,-596.52,0.00021026,2]
[380067742,1755527440813,-480.0,0.00021026,2]
[380067743,1755527440822,-480.0,0.00021026,2]
[380067744,1755527440832,-480.0,0.00021026,2]
[380067745,1755527440841,-481.38394314,0.00021026,2]
[380067746,1755527440851,-776.57,0.00021026,2]
[380067747,1755527440860,-629.99,0.00021026,2]
[380067748,1755527440869,-387.22438873,0.00021026,2]
[380067749,1755527440879,-151.0,0.00021026,2]
[380067750,1755527440888,-480.0,0.00021026,2]
[380067751,1755527440897,-151.0,0.00021026,2]
[380067752,1755527440906,-480.0,0.00021026,2]
[380067753,1755527440916,-500.0,0.00021026,2]
[380067754,1755527440926,-2335.16,0.00021026,2]
[380067755,1755527440935,-480.0,0.00021026,2]
[380067756,1755527440944,-483.02450972,0.00021026,2]
[380067757,1755527440953,-488.56443017,0.00021026,2]
[380067758,1755527440962,-485.72028113,0.00021026,2]
[380067759,1755527440971,-151.0,0.00021026,2]
[380067760,1755527440982,-480.0,0.00021026,2]
[380067761,1755527440994,-898.26,0.00021026,2]
[380067762,1755527441003,-151.0,0.00021026,2]
[380067763,1755527441013,-480.0,0.00021027,2]
[380067764,1755527441022,-874.22,0.00021027,2]
[380067765,1755527441032,-480.0,0.00021027,2]
[380067766,1755527441041,-480.0,0.00021027,2]
[380067767,1755527441055,-480.0,0.00021027,2]
[380067768,1755527441064,-480.0,0.00021027,2]
[380067769,1755527441074,-612.82,0.00021027,2]
[380067770,1755527441083,-480.0,0.00021027,2]
[380067771,1755527441095,-480.0,0.00021027,2]
[380067772,1755527441104,-480.0,0.00021027,2]
[380067773,1755527441113,-480.0,0.00021027,2]
[380067774,1755527441125,-480.0,0.00021027,2]
[380067775,1755527441134,-480.0,0.00021027,2]
[380067776,1755527441143,-480.0,0.00021027,2]
[380067777,1755527441152,-480.0,0.00021027,2]
[380067778,1755527441162,-480.0,0.00021027,2]
[380067779,1755527441171,-523.34117837,0.00021027,2]
[380067780,1755527441180,-480.0,0.00021027,2]
[380067781,1755527441189,-191.88435266,0.00021027,2]
[380067782,1755527441198,-480.0,0.00021027,2]
[380067783,1755527441208,-480.0,0.00021027,2]
[380067784,1755527441217,-462.70496126,0.00021027,2]
[380067785,1755527441227,-486.75860941,0.00021027,2]
[380067786,1755527441238,-484.93570729,0.00021027,2]
[380067787,1755527441247,-480.0,0.00021027,2]
[380067788,1755527441256,-480.0,0.00021027,2]
[380067789,1755527441266,-480.0,0.00021027,2]
[380067790,1755527441275,-480.0,0.00021027,2]
[380067791,1755527441284,-480.0,0.00021027,2]
[380067792,1755527441294,-480.0,0.00021027,2]
[380067793,1755527441303,-445.35109414,0.00021027,2]
[380067794,1755527441312,-151.0,0.00021027,2]
[380067795,1755527441322,-151.0,0.00021027,2]
[380067796,1755527441332,-151.0,0.00021027,2]
[380067797,1755527441341,-151.40050607,0.00021027,2]
[380067798,1755527441352,-151.0,0.00021027,2]
[380067799,1755527441361,-500.0,0.00021027,2]
[380067800,1755527441371,-500.0,0.00021027,2]
[380067801,1755527441380,-151.59723003,0.00021027,2]
[380067802,1755527441389,-151.48628107,0.00021027,2]
[380067803,1755527441399,-463.18602924,0.00021027,2]
[380067804,1755527441408,-435.66289868,0.00021027,2]
[380067805,1755527441417,-480.0,0.00021027,2]
[380067806,1755527441426,-485.04437223,0.00021027,2]
[380067807,1755527441434,-480.0,0.00021027,2]
[380067808,1755527441444,-480.0,0.00021027,2]
[380067809,1755527441453,-315.89642422,0.00021027,2]
[380067810,1755527441462,-480.0,0.00021027,2]
[380067811,1755527441472,-480.0,0.00021027,2]
[380067812,1755527441481,-485.45950104,0.00021027,2]
[380067813,1755527441492,-480.0,0.00021027,2]
[380067814,1755527441501,-571.5,0.00021027,2]
[380067815,1755527441511,-480.0,0.00021027,2]
[380067816,1755527441520,-480.0,0.00021027,2]
[380067817,1755527441530,-480.0,0.00021027,2]
[380067818,1755527441540,-480.0,0.00021027,2]
[380067819,1755527441549,-481.25287398,0.00021027,2]
[380067820,1755527441558,-480.0,0.00021027,2]
[380067821,1755527441567,-480.0,0.00021027,2]
[380067822,1755527441577,-480.0,0.00021027,2]
[380067823,1755527441586,-441.67706893,0.00021027,2]
[380067824,1755527441596,-480.0,0.00021027,2]
[380067825,1755527441605,-480.0,0.00021027,2]
[380067826,1755527441614,-480.0,0.00021027,2]
[380067827,1755527441623,-480.0,0.00021027,2]
[380067828,1755527441633,-151.46434,0.00021027,2]
[380067829,1755527441642,-598.66771451,0.00021027,2]
[380067830,1755527441651,-480.0,0.00021027,2]
[380067831,1755527441661,-151.0,0.00021027,2]
[380067832,1755527441670,-151.0,0.00021027,2]
[380067833,1755527441680,-151.845301,0.00021027,2]
[380067834,1755527441689,-480.0,0.00021027,2]
[380067835,1755527441698,-480.0,0.00021027,2]
[380067836,1755527441708,-151.0,0.00021027,2]
[380067837,1755527441717,-480.0,0.00021027,2]
[380067838,1755527441727,-384.901582,0.00021027,2]
[380067839,1755527441737,-480.0,0.00021027,2]
[380067840,1755527441746,-480.0,0.00021027,2]
[380067841,1755527441755,-480.0,0.00021027,2]
[380067842,1755527441765,-480.0,0.00021027,2]
[380067843,1755527441774,-384.901582,0.00021027,2]
[380067844,1755527441783,-480.0,0.00021027,2]
[380067845,1755527441792,-151.0,0.00021027,2]
[380067846,1755527441802,-480.0,0.00021027,2]
[380067847,1755527441811,-151.0,0.00021027,2]
[380067848,1755527441820,-162.425812,0.00021027,2]
[380067849,1755527441830,-562.884549,0.00021027,2]
[380067850,1755527441839,-480.0,0.00021027,2]
[380067851,1755527441849,-1061.13,0.00021027,2]
[380067852,1755527441858,-151.0,0.00021027,2]
[380067853,1755527441868,-562.884549,0.00021027,2]
[380067854,1755527441877,-151.0,0.00021027,2]
[380067855,1755527441886,-151.0,0.00021027,2]
[380067856,1755527441895,-151.0,0.00021027,2]
[380067857,1755527441904,-500.0,0.00021027,2]
[380067858,1755527441914,-500.0,0.00021027,2]
[380067859,1755527441923,-151.0,0.00021027,2]
[380067860,1755527441932,-995.29,0.00021027,2]
[380067861,1755527441942,-151.0,0.00021027,2]
[380067863,1755527441952,-480.0,0.00021027,2]
[380067864,1755527441961,-537.35,0.00021027,2]
[380067866,1755527441970,-480.0,0.00021027,2]
[380067867,1755527441980,-151.0,0.00021027,2]
[380067868,1755527441991,-480.0,0.00021027,2]
[380067869,1755527442000,-259.16787837,0.00021027,2]
[380067871,1755527442010,-151.0,0.00021027,2]
[380067872,1755527442020,-480.0,0.00021027,2]
[380067873,1755527442031,-151.0,0.00021027,2]
[380067874,1755527442040,-500.0,0.00021027,2]
[380067875,1755527442058,-480.0,0.00021027,2]
[380067876,1755527442068,-151.0,0.00021027,2]
[380067877,1755527442078,-396.69188472,0.00021027,2]
[380067878,1755527442089,-151.0,0.00021027,2]
[380067879,1755527442099,-2013.38,0.00021027,2]
[380067880,1755527442108,-1069.08,0.00021027,2]
[380067881,1755527442117,-441.31275012,0.00021027,2]
[380067882,1755527442127,-151.0,0.00021027,2]
[380067883,1755527442138,-480.0,0.00021027,2]
[380067884,1755527442148,-480.0,0.00021027,2]
[380067885,1755527442157,-151.0,0.00021027,2]
[380067886,1755527442166,-480.0,0.00021027,2]
[380067887,1755527442175,-151.0,0.00021027,2]
[380067888,1755527442184,-151.0,0.00021027,2]
[380067889,1755527442194,-480.0,0.00021027,2]
[380067890,1755527442203,-480.0,0.00021027,2]
[380067891,1755527442212,-151.0,0.00021027,2]
[380067892,1755527442222,-480.0,0.00021027,2]
[380067893,1755527442231,-472.92867837,0.00021027,2]
[380067894,1755527442304,173.227958,0.00018551,2]
[380067895,1755527442354,-7.07132163,0.00021027,2]
[380067896,1755527442364,-278.222525,0.00021027,2]
[380067897,1755527442374,-151.362037,0.00021027,2]
[380067898,1755527442383,-278.222525,0.00021027,2]
[380067899,1755527442393,-480.0,0.00021027,2]
[380067900,1755527442404,-547.57,0.00021027,2]
[380067901,1755527442413,-1179.3565067,0.00021027,2]
[380067902,1755527442424,-323.21226312,0.00021027,2]
[380067948,1755527868947,1876.0185694,0.0002876,120]
[380067949,1755527985740,1003.3454656,0.0002876,120]
[380067950,1755528260969,150.0,0.00027046,60]
[380067951,1755528279184,242.996224,0.0001817,2]
[380067952,1755528386782,164.704074,0.00013699,2]
[380067953,1755528393123,-446.15369234,0.00018793,2]
[380067954,1755528427193,-341.31356843,0.00018793,2]
[380067955,1755528427214,-1641.73532544,0.000188,2]
[380067956,1755528427235,-297.44507295,0.0001897,2]
[380067957,1755528427256,-2278.07849039,0.0001907,2]
[380067958,1755528427277,-193.59978247,0.0001907,2]
[380067959,1755528427299,-1475.26843289,0.00019078,2]
[380067960,1755528427319,-300.0,0.00019162,2]
[380067961,1755528427341,-1200.0,0.00019163,2]
[380067962,1755528427365,-1200.0,0.00019163,2]
[380067963,1755528427385,-300.0,0.00019164,2]
[380067964,1755528427406,-300.0,0.00019164,2]
[380067965,1755528427427,-500.0,0.0001917,2]
[380067966,1755528427450,-500.0,0.0001917,2]
[380067967,1755528427471,-500.0,0.0001917,2]
[380067968,1755528427492,-343.04906305,0.0001917,2]
[380067969,1755528427516,-500.0,0.0001917,2]
[380067970,1755528427538,-500.0,0.0001917,2]
[380067971,1755528427562,-500.0,0.0001917,2]
[380067972,1755528427587,-500.0,0.0001917,2]
[380067973,1755528427611,-500.0,0.0001917,2]
[380067974,1755528427633,-500.0,0.0001917,2]
[380067975,1755528427654,-500.0,0.0001917,2]
[380067976,1755528427677,-500.0,0.0001917,2]
[380067977,1755528427698,-404.33026314,0.0001917,2]
[380067978,1755528427718,-246.28740624,0.0001917,2]
[380067979,1755528427741,-500.0,0.0001917,2]
[380067980,1755528427762,-500.0,0.0001917,2]
[380067981,1755528427785,-500.0,0.0001917,2]
[380067982,1755528427809,-450.0,0.0001917,2]
[380067983,1755528427833,-500.0,0.0001917,2]
[380067984,1755528427854,-500.0,0.0001917,2]
[380067985,1755528427877,-500.0,0.0001917,2]
[380067986,1755528427899,-500.0,0.0001917,2]
[380067987,1755528427918,-500.0,0.0001917,2]
[380067988,1755528427940,-260.272859,0.0001917,2]
[380067989,1755528427975,2804.3769427,0.0001828,2]
[380067990,1755528452072,-50000.0,0.0001917,2]
[380067991,1755528452095,-239.727141,0.0001917,2]
[380067992,1755528452117,-500.0,0.0001917,2]
[380067993,1755528452138,-500.0,0.0001917,2]
[380067994,1755528452161,-500.0,0.0001917,2]
[380067995,1755528452193,-500.0,0.0001917,2]
[380067996,1755528452219,-500.0,0.0001917,2]
[380067997,1755528452244,-500.0,0.0001917,2]
[380067998,1755528452267,-500.0,0.0001917,2]
[380067999,1755528452290,-500.0,0.0001917,2]
[380068000,1755528452313,-500.0,0.0001917,2]
[380068001,1755528452336,-500.0,0.0001917,2]
[380068002,1755528452360,-633.76970398,0.0001917,2]
[380068003,1755528452386,-500.0,0.0001917,2]
[380068004,1755528452408,-500.0,0.0001917,2]
[380068005,1755528452433,-500.0,0.0001917,2]
[380068006,1755528452458,-500.0,0.0001917,2]
[380068007,1755528452636,-500.0,0.0001917,2]
[380068008,1755528452659,-500.0,0.0001917,2]
[380068009,1755528452681,-500.0,0.0001917,2]
[380068010,1755528452717,-500.0,0.0001917,2]
[380068011,1755528452741,-500.0,0.0001917,2]
[380068012,1755528452765,-500.0,0.0001917,2]
[380068013,1755528452787,-500.0,0.0001917,2]
[380068014,1755528452809,-500.0,0.0001917,2]
[380068015,1755528452832,-500.0,0.0001917,2]
[380068016,1755528452853,-500.0,0.0001917,2]
[380068017,1755528452875,-500.0,0.0001917,2]
[380068018,1755528452896,-500.0,0.0001917,2]
[380068019,1755528452917,-500.0,0.0001917,2]
[380068020,1755528452939,-313.3769704,0.0001917,2]
[380068021,1755528452961,-500.0,0.0001917,2]
[380068022,1755528452982,-500.0,0.0001917,2]
[380068023,1755528453003,-500.0,0.0001917,2]
[380068024,1755528453022,-500.0,0.00019173,2]
[380068025,1755528453044,-500.0,0.00019173,2]
[380068026,1755528453066,-500.0,0.00019173,2]
[380068027,1755528453087,-500.0,0.00019173,2]
[380068028,1755528453110,-277.10577989,0.00019173,2]
[380068029,1755528453131,-258.7740621,0.00019173,2]
[380068030,1755528453153,-360.27169985,0.00019173,2]
[380068031,1755528453175,-158.67248603,0.00019173,2]
[380068032,1755528453197,-500.0,0.00019173,2]
[380068033,1755528453219,-500.0,0.00019173,2]
[380068034,1755528453240,-500.0,0.00019173,2]
[380068035,1755528453261,-500.0,0.00019173,2]
[380068036,1755528453284,-500.0,0.00019173,2]
[380068037,1755528453306,-380.4077825,0.00019173,2]
[380068038,1755528453326,-500.0,0.00019173,2]
[380068039,1755528453347,-500.0,0.00019173,2]
[380068040,1755528453374,-443.18345272,0.00019173,2]
[380068041,1755528453395,-254.79186832,0.00019173,2]
[380068042,1755528453418,-426.45244949,0.00019173,2]
[380068043,1755528453439,-160.33864374,0.00019173,2]
[380068044,1755528453464,-500.0,0.00019173,2]
[380068045,1755528453486,-500.0,0.00019173,2]
[380068046,1755528453508,-500.0,0.00019173,2]
[380068047,1755528453530,-500.0,0.00019173,2]
[380068048,1755528453553,-489.41512049,0.00019173,2]
[380068049,1755528453574,-474.56533826,0.00019173,2]
[380068050,1755528453594,-500.0,0.00019173,2]
[380068051,1755528453617,-500.0,0.00019173,2]
[380068052,1755528453639,-500.0,0.00019173,2]
[380068053,1755528453660,-500.0,0.00019173,2]
[380068054,1755528453682,-500.0,0.00019173,2]
[380068055,1755528453706,-500.0,0.00019173,2]
[380068056,1755528453726,-500.0,0.00019173,2]
[380068057,1755528453748,-501.71348276,0.00019173,2]
[380068058,1755528453770,-500.0,0.00019173,2]
[380068059,1755528453791,-500.0,0.00019173,2]
[380068060,1755528453813,-500.0,0.00019173,2]
[380068061,1755528453836,-292.32523917,0.00019177,2]
[380068062,1755528453859,-480.0,0.00019178,2]
[380068063,1755528453881,-480.0,0.00019178,2]
[380068064,1755528453904,-480.0,0.00019178,2]
[380068065,1755528453927,-480.0,0.00019178,2]
[380068066,1755528453948,-480.0,0.00019178,2]
[380068067,1755528453970,-327.9059211,0.00019178,2]
[380068068,1755528453993,-464.39918591,0.00019178,2]
[380068069,1755528454015,-485.97371935,0.00019178,2]
[380068070,1755528454038,-480.0,0.00019178,2]
[380068071,1755528454061,-482.58470994,0.00019178,2]
[380068072,1755528454084,-528.93,0.00019178,2]
[380068073,1755528454109,-460.0,0.00019178,2]
[380068074,1755528454132,-211.00494772,0.00019178,2]
[380068075,1755528454156,-480.0,0.00019178,2]
[380068076,1755528454180,-480.0,0.00019178,2]
[380068077,1755528454203,-463.01927669,0.00019178,2]
[380068078,1755528454224,-483.87035645,0.00019178,2]
[380068079,1755528454246,-461.84084996,0.00019178,2]
[380068080,1755528454270,-460.0,0.00019178,2]
[380068081,1755528454293,-474.30778521,0.00019178,2]
[380068082,1755528454315,-461.70400869,0.00019178,2]
[380068083,1755528454338,-460.0,0.00019178,2]
[380068084,1755528454362,-460.0,0.00019178,2]
[380068085,1755528454391,-484.52307798,0.00019178,2]
[380068086,1755528454413,-363.13383943,0.00019178,2]
[380068087,1755528454437,-480.0,0.00019178,2]
[380068088,1755528454462,-480.0,0.00019178,2]
[380068089,1755528454485,-480.3066575,0.00019178,2]
[380068090,1755528454508,-480.0,0.00019178,2]
[380068091,1755528454531,-480.0,0.00019178,2]
[380068092,1755528454556,-480.0,0.00019178,2]
[380068093,1755528454580,-480.0,0.00019178,2]
[380068094,1755528454604,-480.0,0.00019178,2]
[380068095,1755528454633,-480.0,0.00019178,2]
[380068096,1755528454657,-480.0,0.00019178,2]
[380068097,1755528454679,-480.0,0.00019178,2]
[380068098,1755528454702,-480.0,0.00019178,2]
[380068099,1755528454725,-480.0,0.00019178,2]
[380068100,1755528454747,-480.0,0.00019178,2]
[380068101,1755528454769,-480.0,0.00019178,2]
[380068102,1755528454791,-480.0,0.00019178,2]
[380068103,1755528454917,-480.0,0.00019178,2]
[380068104,1755528454939,-461.66385513,0.00019178,2]
[380068105,1755528454965,-485.42197713,0.00019178,2]
[380068106,1755528454987,-480.0,0.00019178,2]
[380068107,1755528455008,-480.0,0.00019178,2]
[380068108,1755528455030,-845.84,0.00019178,2]
[380068109,1755528455053,-480.0,0.00019178,2]
[380068110,1755528455074,-482.21929917,0.00019178,2]
[380068111,1755528455096,-526.95,0.00019178,2]
[380068112,1755528455121,-456.76404804,0.00019178,2]
[380068113,1755528455140,-171.87435154,0.00019178,2]
[380068114,1755528455160,-328.93838665,0.00019178,2]
[380068115,1755528455181,-442.94462527,0.00019178,2]
[380068116,1755528455202,-878.32,0.00019178,2]
[380068117,1755528455223,-480.0,0.00019178,2]
[380068118,1755528455244,-480.0,0.00019178,2]
[380068119,1755528455264,-834.8,0.00019178,2]
[380068120,1755528455286,-480.0,0.00019178,2]
[380068121,1755528455306,-570.34275129,0.00019178,2]
[380068122,1755528455328,-480.0,0.00019178,2]
[380068123,1755528455350,-569.41,0.00019178,2]
[380068124,1755528455376,-480.0,0.00019178,2]
[380068125,1755528455397,-183.27288396,0.00019178,2]
[380068126,1755528455421,-480.0,0.00019178,2]
[380068127,1755528455443,-512.84,0.00019178,2]
[380068128,1755528455467,-480.0,0.00019178,2]